{"text_format":"1","workbook":"xlsx","n_sheets":2,"sheets":["data","FNFED form"],"not_rendered":{"charts":0,"images":0,"macros":1,"external_links":0,"defined_names":2,"comments":0,"pivot_tables":0},"unopened":[],"bounds":{"document_bytes":16777216,"sheet_cells":100000,"rows_first":2000,"rows_last":500,"rows_between":2000,"halvings":0,"cell_chars":16384,"cell_head_chars":4096},"cells_cut":0,"cells_raw":0,"read":"whole","date_system":"1900"}

{"sheet":"data","index":0,"n_rows":2,"n_cols":34,"rows_kept":2,"cut":false,"hidden":true,"merged":[]}
["API","OpName","OpNum","WellName","SHL_Lat","SHL_Long","BHL_Lat","BHL_Long","County","Datum","Sec","Twn","Rng","Meridian","ServiceCo","DateSub","StartDate","EndDate","FlowDate","Formation","C_1","C_1_Cell","C_1_Phone","C_2","C_2_Cell","C_2_Phone","Array_Type","Has_Plan","In_Com_AOI","StagesNo","Vol_Stage","H2S","id","idAGO"]
[{"$f":"IF('FNFED form'!C14=\"\",\"\",'FNFED form'!C14)","v":""},{"$f":"UPPER(IF('FNFED form'!D10=\"\",\"\",'FNFED form'!D10))","v":""},{"$f":"IF('FNFED form'!L10=\"\",\"\",'FNFED form'!L10)","v":""},{"$f":"UPPER(IF('FNFED form'!K12<>\"\",CONCATENATE('FNFED form'!D12,\" \",'FNFED form'!K12),'FNFED form'!D12))","v":""},{"$f":"IF('FNFED form'!E19=\"\",\"\",'FNFED form'!E19)","v":""},{"$f":"IF('FNFED form'!J19=\"\",\"\",'FNFED form'!J19)","v":""},{"$f":"IF(OR('FNFED form'!E22=\"\",'FNFED form'!E22='FNFED form'!E19),('FNFED form'!E19)+0.000001,'FNFED form'!E22)","v":9.9999999999999995E-7},{"$f":"IF(OR('FNFED form'!J22=\"\",'FNFED form'!J22='FNFED form'!J19),('FNFED form'!J19)+0.000001,'FNFED form'!J22)","v":9.9999999999999995E-7},{"$f":"PROPER(IF('FNFED form'!C17=\"\",\"\",'FNFED form'!C17))","v":""},{"$f":"IF('FNFED form'!L17=\"\",\"\",'FNFED form'!L17)","v":""},{"$f":"IF('FNFED form'!H14=\"\",\"\",'FNFED form'!H14)","v":""},{"$f":"IF('FNFED form'!J14=\"\",\"\",'FNFED form'!J14)","v":""},{"$f":"IF('FNFED form'!L14=\"\",\"\",'FNFED form'!L14)","v":""},{"$f":"IF('FNFED form'!L15=\"\",\"\",'FNFED form'!L15)","v":"IM"},{"$f":"UPPER(IF('FNFED form'!D25=\"\",\"\",'FNFED form'!D25))","v":""},{"$f":"IF('FNFED form'!D8=\"\",\"\",'FNFED form'!D8)","v":""},{"$f":"IF('FNFED form'!H27=\"\",\"\",'FNFED form'!H27)","v":""},{"$f":"IF('FNFED form'!H29=\"\",\"\",'FNFED form'!H29)","v":""},{"$f":"IF('FNFED form'!G31=\"\",\"\",'FNFED form'!G31)","v":""},{"$f":"TRIM(UPPER(IF('FNFED form'!D33=\"\",\"\",'FNFED form'!D33)))","v":""},{"$f":"IF('FNFED form'!B47=\"\",\"\",'FNFED form'!B47)","v":""},{"$f":"IF('FNFED form'!H47=\"\",\"\",'FNFED form'!H47)","v":""},{"$f":"IF('FNFED form'!K47=\"\",\"\",'FNFED form'!K47)","v":""},{"$f":"IF('FNFED form'!B49=\"\",\"\",'FNFED form'!B49)","v":""},{"$f":"IF('FNFED form'!H49=\"\",\"\",'FNFED form'!H49)","v":""},{"$f":"IF('FNFED form'!K49=\"\",\"\",'FNFED form'!K49)","v":""},{"$f":"IF('FNFED form'!K37=\"\",\"\",'FNFED form'!K37)","v":""},{"$f":"IF('FNFED form'!L40=\"\",\"\",'FNFED form'!L40)","v":""},{"$f":"IF('FNFED form'!A41=\"\",\"NO\",\"YES\")","v":"NO"},{"$f":"IF('FNFED form'!F42=\"\",\"\",'FNFED form'!F42)","v":""},{"$f":"IFERROR(VALUE(IF('FNFED form'!K42=\"\",\"\",'FNFED form'!K42)),\"\")","v":""},{"$f":"IF('FNFED form'!G35=\"\",\"\",'FNFED form'!G35)","v":""},{"$f":"CONCATENATE(RIGHT(YEAR('FNFED form'!H27),2),RIGHT('FNFED form'!C14,6),RIGHT('FNFED form'!H27,2),RIGHT('FNFED form'!H29,2))","v":"00"},{"$f":"CONCATENATE(\"id\",RIGHT('FNFED form'!C14,6),RIGHT('FNFED form'!H27,2),RIGHT('FNFED form'!H29,2))","v":"id"}]

{"sheet":"FNFED form","index":1,"n_rows":83,"n_cols":14,"rows_kept":83,"cut":false,"hidden":false,"merged":[[40,0,40,11],[34,6,34,7],[32,3,32,11],[58,0,59,11],[61,0,62,11],[60,0,60,11],[2,0,2,11],[3,0,3,11],[4,0,4,11],[5,0,5,11],[34,0,34,5],[18,9,18,11],[21,4,21,6],[21,9,21,11],[24,3,24,11],[19,9,19,11],[28,7,28,11],[21,7,21,8],[15,9,15,11],[14,0,14,4],[16,6,16,10],[19,4,19,6],[8,0,8,1],[64,0,64,11],[48,10,48,11],[46,10,46,11],[30,6,30,11],[44,0,44,11],[46,1,46,5],[48,1,48,5],[46,7,46,8],[48,7,48,8],[50,0,50,11],[42,10,42,11],[41,10,41,11],[36,10,37,11],[18,0,18,1],[21,0,21,1],[0,0,0,11],[54,0,54,11],[52,0,52,11],[7,3,7,11],[9,3,9,9],[11,3,11,8],[11,10,11,11],[18,2,18,3],[18,7,18,8],[13,2,13,4],[18,4,18,6],[16,2,16,5],[21,2,21,3],[22,4,22,6],[22,9,22,11],[26,7,26,11]]}
["NOTICE OF HYDRAULIC FRACTURING OPERATIONS "]
[]
["PRIOR NOTICE REQUIRED! Notice to Conservation Division of hydraulic fracturing operations. Notice shall be "]
["sent electronically using form 6000NHF at least 48 hours prior to commencement of  hydraulic fracturing"]
[" operations on a well. OAC 165:10-3-10(b)(2)"]
[]
[]
["    DATE SUBMITTED:",null,null,null,null,null,null,null,null,null,null,null,null,"Adair"]
[" (BY OPERATOR)",null,null,null,null,null,null,null,null,null,null,null,null,"Alfalfa"]
["    OPERATOR NAME:",null,null,null,null,null,null,null,null,null,"OPER. #",null,null,"Atoka"]
[null,null,null,null,null,null,null,null,null,null,null,null,null,"Beaver"]
["    WELL NAME:",null,null,null,null,null,null,null,null,"WELL #",null,null,null,"Beckham"]
[null,null,null,null,null,null,null,null,null,null,null,null,null,"Blaine"]
["    API NUMBER:",null,null,null,null,"SHL:","SEC",null,"TWP",null,"RGE",null,null,"Bryan"]
["    (10-DIGIT API# - FOR EXAMPLE, 3500321606)",null,null,null,null,null,null,null,null,null,"MERIDAN:",{"$f":"IF(OR(C17=\"CIMARRON\",C17=\"TEXAS\",C17=\"BEAVER\"),\"ECM\",\"IM\")","v":"IM"},null,"Caddo"]
[null,null,null,null,null,null,null,null,null,"(FROM COUNTY ENTRY)",null,null,null,"Canadian"]
["    COUNTY:",null,null,null,null,null,"DATUM USED (NAD27, NAD83 or WGS84): ",null,null,null,null,null,null,"Carter"]
[null,null,null,null,null,null,null,null,null,null,null,null,null,"Cherokee"]
["    SHL:",null,"LATITUDE",null,null,null,null,"LONGITUDE",null,null,null,null,null,"Choctaw"]
[null,null,null,null,"(DECIMAL DEGREES)",null,null,null,null,"(DECIMAL DEGREES)",null,null,null,"Cimarron"]
[null,null,null,null,null,null,null,null,null,null,null,null,null,"Cleveland"]
["    BHL:",null,"LATITUDE",null,null,null,null,"LONGITUDE",null,null,null,null,null,"Coal"]
[null,null,null,null,"(DECIMAL DEGREES)",null,null,null,null,"( DECIMAL DEGREES)",null,null,null,"Comanche"]
[null,null,null,null,null,null,null,null,null,null,null,null,null,"Cotton"]
["    SERVICE COMPANY:",null,null,null,null,null,null,null,null,null,null,null,null,"Craig"]
[null,null,null,null,null,null,null,null,null,null,null,null,null,"Creek"]
["    ANTICIPATED START DATE OF HYDRAULIC FRACTURING:",null,null,null,null,null,null,null,null,null,null,null,null,"Custer"]
[null,null,null,null,null,null,null,null,null,null,null,null,null,"Delaware"]
["    ANTICIPATED END DATE OF HYDRAULIC FRACTURING:",null,null,null,null,null,null,null,null,null,null,null,null,"Dewey"]
[null,null,null,null,null,null,null,null,null,null,null,null,null,"Ellis"]
["    PLANNED DATE OF START OF FLOWBACK:",null,null,null,null,null,null,null,null,null,null,null,null,"Garfield"]
[null,null,null,null,null,null,null,null,null,null,null,null,null,"Garvin"]
["    NAME OF FORMATION:",null,null,null,null,null,null,null,null,null,null,null,null,"Grady"]
[null,null,null,null,null,null,null,null,null,null,null,null,null,"Grant"]
["    H2S PRESENT? (ANNOTATE \"YES\" OR \"NO):",null,null,null,null,null,null,null,null,null,null,null,null,"Greer"]
[null,null,null,null,null,null,null,null,null,null,null,null,null,"Harmon"]
["     SELECT WHICH SEISMIC ARRAY IS BEING USED TO MONITOR EARTHQUAKES IN THE VICINITY",null,null,null,null,null,null,null,null,null,null,null,null,"Harper"]
["     OF THE WELL BEING COMPLETED? (CHOOSE FROM DROPDOWN LIST, RIGHT)",null,null,null,null,null,null,null,null,null,null,null,null,"Haskell"]
[null,null,null,null,null,null,null,null,null,null,null,null,null,"Hughes"]
["     DOES OPERATOR HAVE SEISMICITY RESPONSE PROTOCOLS IN PLACE? (\"YES\" or \"NO\")",null,null,null,null,null,null,null,null,null,null,null,null,"Jackson"]
[{"$f":"IF(OR(PtInAnomPoly(J19,E19),PtInAnomPoly(J22,E22)),\"*\",\"\")","v":""},null,null,null,null,null,null,null,null,null,null,null,null,"Jefferson"]
["    NUMBER OF ANTICIPATED STAGES:",null,null,null,null,null,"    ANTICIPATED VOLUME/STAGE:",null,null,null,null,null,null,"Johnston"]
[null,null,null,null,null,null,null,null,null,null,"(BBLS)",null,null,"Kay"]
[null,null,null,null,null,null,null,null,null,null,null,null,null,"Kingfisher"]
["24-HOUR CONTACTS:",null,null,null,null,null,null,null,null,null,null,null,null,"Kiowa"]
[null,null,null,null,null,null,null,null,null,null,null,null,null,"Latimer"]
["    #1:",null,null,null,null,null,"CELL:",null,null,"PHONE:",null,null,null,"Le Flore"]
[null,null,null,null,null,null,null,null,null,null,null,null,null,"Lincoln"]
["    #2:",null,null,null,null,null,"CELL:",null,null,"PHONE:",null,null,null,"Logan"]
[null,null,null,null,null,null,null,null,null,null,null,null,null,"Love"]
["PLEASE RETURN TO THE CONSERVATION DIVISION BELOW:",null,null,null,null,null,null,null,null,null,null,null,null,"Major"]
[null,null,null,null,null,null,null,null,null,null,null,null,null,"Marshall"]
["OGVOLUMES@occ.ok.gov",null,null,null,null,null,null,null,null,null,null,null,null,"Mayes"]
[null,null,null,null,null,null,null,null,null,null,null,null,null,"McClain"]
["(PLEASE REMEMBER TO ATTACH THIS COMPLETED EXCEL FORM TO YOUR EMAIL MESSAGE)",null,null,null,null,null,null,null,null,null,null,null,null,"McIntosh"]
[null,null,null,null,null,null,null,null,null,null,null,null,null,"Murray"]
[null,null,null,null,null,null,null,null,null,null,null,null,null,"Muskogee"]
[null,null,null,null,null,null,null,null,null,null,null,null,null,"Noble"]
[null,null,null,null,null,null,null,null,null,null,null,null,null,"Nowata"]
[null,null,null,null,null,null,null,null,null,null,null,null,null,"Okfuskee"]
[null,null,null,null,null,null,null,null,null,null,null,null,null,"Oklahoma"]
[null,null,null,null,null,null,null,null,null,null,null,null,null,"Okmulgee"]
[null,null,null,null,null,null,null,null,null,null,null,null,null,"Osage"]
[null,null,null,null,null,null,null,null,null,null,null,null,null,"Ottawa"]
[null,null,null,null,null,null,null,null,null,null,null,null,null,"Pawnee"]
[null,null,null,null,null,null,null,null,null,null,null,null,null,"Payne"]
[null,null,null,null,null,null,null,null,null,null,null,null,null,"Pittsburg"]
[null,null,null,null,null,null,null,null,null,null,null,null,null,"Pontotoc"]
[null,null,null,null,null,null,null,null,null,null,null,null,null,"Pottawatomie"]
[null,null,null,null,null,null,null,null,null,null,null,null,null,"Pushmataha"]
[null,null,null,null,null,null,null,null,null,null,null,null,null,"Roger Mills"]
[null,null,null,null,null,null,null,null,null,null,null,null,null,"Rogers"]
[null,null,null,null,null,null,null,null,null,null,null,null,null,"Seminole"]
[null,null,null,null,null,null,null,null,null,null,null,null,null,"Sequoyah"]
[null,null,null,null,null,null,null,null,null,null,null,null,null,"Stephens"]
[null,null,null,null,null,null,null,null,null,null,null,null,null,"Texas"]
[null,null,null,null,null,null,null,null,null,null,null,null,null,"Tillman"]
[null,null,null,null,null,null,null,null,null,null,null,null,null,"Tulsa"]
[null,null,null,null,null,null,null,null,null,null,null,null,null,"Wagoner"]
[null,null,null,null,null,null,null,null,null,null,null,null,null,"Washington"]
[null,null,null,null,null,null,null,null,null,null,null,null,null,"Washita"]
[null,null,null,null,null,null,null,null,null,null,null,null,null,"Woods"]
[null,null,null,null,null,null,null,null,null,null,null,null,null,"Woodward"]